[Event "56th Biel Festival MTO 2023"]
[White "Pham,Le Thao Nguyen"]
[Black "Bharath Subramaniyam H"]
[Site "Biel"]
[Round "5.12"]
[Annotator "RC"]
[Result "1/2-1/2"]
[Date "2023.07.21"]
[WhiteElo "2369"]
[BlackElo "2488"]
[PlyCount "109"]
[TimeControl "60"]

1. Nf3 {[%emt 0:0:0]} d5 {[%emt 0:0:0]} 2. d4 {[%emt 0:0:0]} Bf5 {[%emt 0:0:0]} 3. c4 {[%emt 0:0:0]} e6 {[%emt 0:0:0]} 4. Nc3 {[%emt 0:0:0]} Nf6 {[%emt 0:0:0]} 5. Bg5 {[%emt 0:0:0]} c6 {[%emt 0:0:0]} 6. Qb3 {[%emt 0:0:0]} Qb6 {[%emt 0:1:19]} 7. Bxf6 {[%emt 0:1:56]} gxf6 {[%emt 0:1:17]} 8. e3 {[%emt 0:0:57]} Nd7 {[%emt 0:7:48]} 9. Nd2 {[%emt 0:4:33]} Be7 {[%emt 0:12:56]} 10. Be2 {[%emt 0:5:44]} Bg6 {[%emt 0:6:1]} 11. Rc1 {[%emt 0:1:23]} O-O {[%emt 0:3:55]} 12. h4 {[%emt 0:5:26]} h6 {[%emt 0:2:22]} 13. cxd5 {[%emt 0:2:21]} cxd5 {[%emt 0:18:1]} 14. O-O {[%emt 0:8:11]} a6 {[%emt 0:6:29]} 15. a3 {[%emt 0:3:54]} Rac8 {[%emt 0:5:56]} 16. Na2 {[%emt 0:7:35]} Bd6 {[%emt 0:5:36]} 17. Rc3 {[%emt 0:9:12]} Qxb3 {[%emt 0:12:20]} 18. Nxb3 {[%emt 0:0:50]} Rxc3 {[%emt 0:2:14]} 19. Nxc3 {[%emt 0:0:17]} Rc8 {[%emt 0:3:39]} 20. Rc1 {[%emt 0:0:44]} Kf8 {[%emt 0:3:10]} 21. Na2 {[%emt 0:5:19]} Rxc1+ {[%emt 0:0:54]} 22. Naxc1 {[%emt 0:0:35]} Ke8 {[%emt 0:2:10]} 23. Na5 {[%emt 0:4:4]} b5 {[%emt 0:0:11]} 24. Nb7 {[%emt 0:1:0]} Be7 {[%emt 0:1:12]} 25. Nb3 {[%emt 0:0:29]} Bc2 {[%emt 0:2:4]} 26. N3c5 {[%emt 0:1:25]} Nxc5 {[%emt 0:0:10]} 27. Nxc5 {[%emt 0:5:38]} Bxc5 {[%emt 0:0:2]} 28. dxc5 {[%emt 0:0:10]} Bb3 {[%emt 0:0:6]} 29. Bh5 {[%emt 0:0:26]} e5 {[%emt 0:3:38]} 30. Kf1 {[%emt 0:0:38]} Ke7 {[%emt 0:0:29]} 31. Ke2 {[%emt 0:0:29]} a5 {[%emt 0:0:1]} 32. Kd2 {[%emt 0:0:52]} b4 {[%emt 0:0:17]} 33. Bg4 {[%emt 0:1:13]} Kd8 {[%emt 0:0:54]} 34. Bh5 {[%emt 0:0:12]} Ke7 {[%emt 0:0:1]} 35. Bg4 {[%emt 0:0:10]} Bc4 {[%emt 0:0:31]} 36. g3 {[%emt 0:0:59]} Kd8 {[%emt 0:0:22]} 37. Bh5 {[%emt 0:0:9]} Ke7 {[%emt 0:0:6]} 38. Bg4 {[%emt 0:0:16]} Ba6 {[%emt 0:1:40]} 39. Kc2 {[%emt 0:0:45]} Bc4 {[%emt 0:0:2]} 40. Kd2 {[%emt 0:0:17]} Bb5 {[%emt 0:1:10]} 41. Kc2 {[%emt 0:30:15]} Ba4+ {[%emt 0:0:0]} 42. Kd2 {[%emt 0:0:0]} Bd7 {[%emt 0:0:0]} 43. Bh5 {[%emt 0:0:0]} Bf5 {[%emt 0:0:0]} 44. f4 {[%emt 0:0:0]} Be4 {[%emt 0:0:0]} 45. Bg4 {[%emt 0:0:0]} f5 {[%emt 0:9:12]} 46. Be2 {[%emt 0:0:0]} f6 {[%emt 0:0:12]} 47. Bb5 {[%emt 0:0:0]} Kd8 {[%emt 0:0:27]} 48. axb4 {[%emt 0:0:0]} axb4 {[%emt 0:1:4]} 49. Ke2 {[%emt 0:0:0]} Bc2 {[%emt 0:0:46]} 50. Kd2 {[%emt 0:0:0]} Be4 {[%emt 0:0:11]} 51. Ke2 {[%emt 0:0:0]} Kc7 {[%emt 0:0:7]} 52. Kd2 {[%emt 0:0:0]} Bb1 {[%emt 0:3:43]} 53. Kc1 {[%emt 0:0:0]} Be4 {[%emt 0:1:52]} 54. Kd2 {[%emt 0:0:0]} Bb1 {[%emt 0:0:37]} 55. Kc1 {[%emt 0:0:0]} 1/2-1/2

[Event "56th Biel Festival MTO 2023"]
[White "Dotzer,Lukas"]
[Black "Saraci,Nderim"]
[Site "Biel"]
[Round "5.13"]
[Annotator "RC"]
[Result "1/2-1/2"]
[Date "2023.07.21"]
[WhiteElo "2369"]
[BlackElo "2472"]
[PlyCount "59"]
[TimeControl "60"]

1. e4 {[%emt 0:0:0]} e5 {[%emt 0:0:0]} 2. Nf3 {[%emt 0:0:0]} Nc6 {[%emt 0:0:0]} 3. Bb5 {[%emt 0:0:0]} a6 {[%emt 0:0:0]} 4. Ba4 {[%emt 0:0:0]} Nf6 {[%emt 0:0:0]} 5. O-O {[%emt 0:0:0]} Be7 {[%emt 0:0:0]} 6. Re1 {[%emt 0:0:0]} b5 {[%emt 0:0:0]} 7. Bb3 {[%emt 0:0:0]} d6 {[%emt 0:0:0]} 8. c3 {[%emt 0:0:0]} O-O {[%emt 0:0:0]} 9. h3 {[%emt 0:0:0]} Nb8 {[%emt 0:0:0]} 10. d4 {[%emt 0:0:0]} Nbd7 {[%emt 0:0:0]} 11. Nbd2 {[%emt 0:0:0]} Bb7 {[%emt 0:0:0]} 12. Bc2 {[%emt 0:0:0]} Re8 {[%emt 0:0:0]} 13. Nf1 {[%emt 0:0:0]} Bf8 {[%emt 0:0:0]} 14. Ng3 {[%emt 0:0:0]} g6 {[%emt 0:2:16]} 15. a4 {[%emt 0:0:0]} c6 {[%emt 0:11:23]} 16. Bg5 {[%emt 0:8:1]} h6 {[%emt 0:12:47]} 17. Be3 {[%emt 0:11:43]} c5 {[%emt 0:16:38]} 18. d5 {[%emt 0:1:24]} c4 {[%emt 0:3:6]} 19. Nd2 {[%emt 0:5:28]} Nc5 {[%emt 0:2:21]} 20. f4 {[%emt 0:10:34]} exf4 {[%emt 0:1:4]} 21. Bxf4 {[%emt 0:4:44]} Nfd7 {[%emt 0:8:57]} 22. Nf3 {[%emt 0:6:53]} bxa4 {[%emt 0:6:31]} 23. Qd2 {[%emt 0:11:40]} h5 {[%emt 0:2:43]} 24. Bg5 {[%emt 0:13:54]} Be7 {[%emt 0:2:45]} 25. Bxe7 {[%emt 0:3:17]} Qxe7 {[%emt 0:6:24]} 26. Bxa4 {[%emt 0:7:49]} Rad8 {[%emt 0:5:39]} 27. Qh6 {[%emt 0:11:46]} Qf8 {[%emt 0:3:55]} 28. Qg5 {[%emt 0:4:32]} Qe7 {[%emt 0:0:38]} 29. Qh6 {[%emt 0:0:48]} Qf8 {[%emt 0:2:18]} 30. Qg5 {[%emt 0:0:33]} 1/2-1/2

[Event "56th Biel Festival MTO 2023"]
[White "Rathanvel,V S"]
[Black "Sukandar,Irine Kharisma"]
[Site "Biel"]
[Round "5.14"]
[Annotator "RC"]
[Result "1-0"]
[Date "2023.07.21"]
[WhiteElo "2463"]
[BlackElo "2358"]
[PlyCount "61"]
[TimeControl "60"]

1. e4 {[%emt 0:0:0]} e5 {[%emt 0:0:0]} 2. Nf3 {[%emt 0:0:0]} Nc6 {[%emt 0:0:0]} 3. Bb5 {[%emt 0:0:0]} a6 {[%emt 0:0:0]} 4. Ba4 {[%emt 0:0:0]} Nf6 {[%emt 0:0:0]} 5. O-O {[%emt 0:0:0]} Be7 {[%emt 0:0:0]} 6. Re1 {[%emt 0:0:0]} b5 {[%emt 0:0:0]} 7. Bb3 {[%emt 0:0:0]} d6 {[%emt 0:0:0]} 8. c3 {[%emt 0:0:0]} O-O {[%emt 0:0:0]} 9. h3 {[%emt 0:0:0]} Bb7 {[%emt 0:0:0]} 10. d4 {[%emt 0:0:0]} Re8 {[%emt 0:0:0]} 11. Nbd2 {[%emt 0:0:0]} Bf8 {[%emt 0:0:0]} 12. a3 {[%emt 0:0:0]} h6 {[%emt 0:0:0]} 13. Ba2 {[%emt 0:0:0]} Nb8 {[%emt 0:0:36]} 14. Qc2 {[%emt 0:18:57]} Nbd7 {[%emt 0:1:12]} 15. b4 {[%emt 0:9:28]} a5 {[%emt 0:14:3]} 16. Bb2 {[%emt 0:8:47]} axb4 {[%emt 0:9:56]} 17. cxb4 {[%emt 0:8:48]} Rc8 {[%emt 0:6:15]} 18. Qb3 {[%emt 0:9:13]} Qe7 {[%emt 0:5:16]} 19. Nh4 {[%emt 0:0:41]} d5 {[%emt 0:5:15]} 20. Nf5 {[%emt 0:26:26]} Qe6 {[%emt 0:0:35]} 21. Nxh6+ {[%emt 0:1:46]} gxh6 {[%emt 0:1:16]} 22. dxe5 {[%emt 0:0:8]} Nh5 {[%emt 0:9:23]} 23. exd5 {[%emt 0:0:2]} Qf5 {[%emt 0:8:11]} 24. e6 {[%emt 0:4:39]} Ndf6 {[%emt 0:1:27]} 25. Re5 {[%emt 0:0:19]} Qg6 {[%emt 0:6:35]} 26. Bb1 {[%emt 0:5:28]} Qg7 {[%emt 0:0:26]} 27. Rxh5 {[%emt 0:0:11]} Rxe6 {[%emt 0:3:14]} 28. Ne4 {[%emt 0:0:33]} Nxd5 {[%emt 0:3:51]} 29. Bxg7 {[%emt 0:0:16]} Bxg7 {[%emt 0:0:2]} 30. Ra2 {[%emt 0:4:34]} Nf4 {[%emt 0:0:10]} 31. Rf5 {[%emt 0:1:1]} 1-0

[Event "56th Biel Festival MTO 2023"]
[White "Vasquez Toledo,Cristian"]
[Black "Chasin,Nico"]
[Site "Biel"]
[Round "5.15"]
[Annotator "RC"]
[Result "0-1"]
[Date "2023.07.21"]
[WhiteElo "2233"]
[BlackElo "2455"]
[PlyCount "106"]
[TimeControl "60"]

1. e4 {[%emt 0:0:0]} c5 {[%emt 0:0:0]} 2. Nf3 {[%emt 0:0:0]} Nc6 {[%emt 0:0:0]} 3. d4 {[%emt 0:0:0]} cxd4 {[%emt 0:0:0]} 4. Nxd4 {[%emt 0:0:0]} Nf6 {[%emt 0:0:0]} 5. Nc3 {[%emt 0:0:0]} d6 {[%emt 0:0:0]} 6. Bg5 {[%emt 0:0:0]} e6 {[%emt 0:0:0]} 7. Qd3 {[%emt 0:0:0]} a6 {[%emt 0:0:0]} 8. Nxc6 {[%emt 0:0:0]} bxc6 {[%emt 0:0:0]} 9. O-O-O {[%emt 0:0:0]} Qa5 {[%emt 0:0:0]} 10. h4 {[%emt 0:0:0]} Rb8 {[%emt 0:3:46]} 11. Be2 {[%emt 0:4:5]} Be7 {[%emt 0:7:50]} 12. Bd2 {[%emt 0:22:21]} Qb6 {[%emt 0:2:22]} 13. b3 {[%emt 0:0:51]} Qxf2 {[%emt 0:1:32]} 14. e5 {[%emt 0:6:48]} dxe5 {[%emt 0:6:37]} 15. Be3 {[%emt 0:0:15]} Qg3 {[%emt 0:1:21]} 16. Bf3 {[%emt 0:13:54]} O-O {[%emt 0:21:28]} 17. h5 {[%emt 0:8:14]} e4 {[%emt 0:4:3]} 18. Nxe4 {[%emt 0:2:53]} Nxe4 {[%emt 0:1:54]} 19. Qxe4 {[%emt 0:0:41]} e5 {[%emt 0:0:8]} 20. Kb1 {[%emt 0:6:26]} Rb4 {[%emt 0:3:12]} 21. c4 {[%emt 0:3:49]} Be6 {[%emt 0:4:1]} 22. Bd2 {[%emt 0:10:31]} Rb7 {[%emt 0:1:39]} 23. Be1 {[%emt 0:1:16]} Qg5 {[%emt 0:0:35]} 24. Bh4 {[%emt 0:1:23]} Qf5 {[%emt 0:0:2]} 25. Bxe7 {[%emt 0:0:17]} Rxe7 {[%emt 0:0:16]} 26. Rhe1 {[%emt 0:1:48]} Rc8 {[%emt 0:3:41]} 27. Kb2 {[%emt 0:1:1]} Qxe4 {[%emt 0:3:29]} 28. Rxe4 {[%emt 0:0:26]} f6 {[%emt 0:1:54]} 29. Rd6 {[%emt 0:2:8]} Kf7 {[%emt 0:14:50]} 30. Re2 {[%emt 0:2:22]} Rec7 {[%emt 0:0:41]} 31. g4 {[%emt 0:4:5]} Ke7 {[%emt 0:0:27]} 32. c5 {[%emt 0:2:56]} Rd7 {[%emt 0:2:36]} 33. Bxc6 {[%emt 0:5:58]} Rxd6 {[%emt 0:1:7]} 34. cxd6+ {[%emt 0:0:2]} Kxd6 {[%emt 0:0:3]} 35. Bb7 {[%emt 0:0:6]} Rb8 {[%emt 0:1:54]} 36. Rd2+ {[%emt 0:0:29]} Ke7 {[%emt 0:1:46]} 37. Bxa6 {[%emt 0:0:11]} Bxg4 {[%emt 0:0:2]} 38. Rh2 {[%emt 0:1:8]} f5 {[%emt 0:4:46]} 39. Kc3 {[%emt 0:0:28]} e4 {[%emt 0:0:41]} 40. Kd4 {[%emt 0:1:31]} Rd8+ {[%emt 0:0:9]} 41. Ke5 {[%emt 0:30:42]} e3 {[%emt 0:31:8]} 42. h6 {[%emt 0:0:0]} g5 {[%emt 0:0:0]} 43. Rc2 {[%emt 0:0:0]} f4 {[%emt 0:0:0]} 44. Rg2 {[%emt 0:0:0]} Rd5+ {[%emt 0:0:0]} 45. Ke4 {[%emt 0:0:0]} Ra5 {[%emt 0:0:0]} 46. Rxg4 {[%emt 0:0:0]} Rxa6 {[%emt 0:0:0]} 47. Rg1 {[%emt 0:0:0]} e2 {[%emt 0:0:0]} 48. Kf3 {[%emt 0:0:0]} Rxa2 {[%emt 0:0:0]} 49. Rc1 {[%emt 0:0:0]} Kf7 {[%emt 0:0:0]} 50. Kg4 {[%emt 0:0:0]} Ra7 {[%emt 0:0:0]} 51. b4 {[%emt 0:0:0]} Re7 {[%emt 0:0:0]} 52. Re1 {[%emt 0:0:0]} Re3 {[%emt 0:0:0]} 53. b5 {[%emt 0:0:0]} Kg6 {[%emt 0:0:0]} 0-1

[Event "56th Biel Festival MTO 2023"]
[White "Materia,Marco"]
[Black "Rosen,Eric"]
[Site "Biel"]
[Round "5.16"]
[Annotator "RC"]
[Result "1-0"]
[Date "2023.07.21"]
[WhiteElo "2436"]
[BlackElo "2344"]
[PlyCount "99"]
[TimeControl "60"]

1. d4 {[%emt 0:0:0]} Nf6 {[%emt 0:0:0]} 2. c4 {[%emt 0:0:0]} e6 {[%emt 0:0:0]} 3. Nf3 {[%emt 0:0:0]} d5 {[%emt 0:0:0]} 4. Nc3 {[%emt 0:0:0]} Nbd7 {[%emt 0:0:0]} 5. Bf4 {[%emt 0:0:0]} Bb4 {[%emt 0:0:0]} 6. cxd5 {[%emt 0:0:0]} exd5 {[%emt 0:0:0]} 7. g3 {[%emt 0:3:24]} Ne4 {[%emt 0:0:0]} 8. Rc1 {[%emt 0:4:43]} c6 {[%emt 0:5:22]} 9. Bg2 {[%emt 0:1:47]} O-O {[%emt 0:2:53]} 10. O-O {[%emt 0:1:16]} Nxc3 {[%emt 0:3:35]} 11. bxc3 {[%emt 0:0:1]} Ba5 {[%emt 0:0:10]} 12. Qd3 {[%emt 0:13:16]} Re8 {[%emt 0:3:5]} 13. Nd2 {[%emt 0:5:31]} Nf6 {[%emt 0:5:7]} 14. f3 {[%emt 0:6:34]} Nh5 {[%emt 0:9:41]} 15. Be3 {[%emt 0:0:32]} f5 {[%emt 0:2:27]} 16. Rfe1 {[%emt 0:11:47]} Be6 {[%emt 0:6:2]} 17. Bf2 {[%emt 0:5:9]} f4 {[%emt 0:3:59]} 18. e4 {[%emt 0:6:13]} fxe3 {[%emt 0:4:13]} 19. Rxe3 {[%emt 0:0:17]} Qd7 {[%emt 0:5:27]} 20. Nb3 {[%emt 0:4:51]} Bb6 {[%emt 0:2:11]} 21. Rce1 {[%emt 0:0:32]} Nf6 {[%emt 0:1:16]} 22. Nc5 {[%emt 0:2:34]} Bxc5 {[%emt 0:0:28]} 23. dxc5 {[%emt 0:0:2]} Bh3 {[%emt 0:4:42]} 24. Bxh3 {[%emt 0:4:42]} Qxh3 {[%emt 0:1:19]} 25. Re7 {[%emt 0:0:2]} Rxe7 {[%emt 0:6:8]} 26. Rxe7 {[%emt 0:0:2]} b6 {[%emt 0:0:3]} 27. Qa6 {[%emt 0:3:14]} Qc8 {[%emt 0:17:40]} 28. Qxc8+ {[%emt 0:0:37]} Rxc8 {[%emt 0:0:2]} 29. Rxa7 {[%emt 0:0:16]} b5 {[%emt 0:0:12]} 30. Bd4 {[%emt 0:0:34]} Re8 {[%emt 0:0:19]} 31. Kf2 {[%emt 0:3:8]} Re6 {[%emt 0:0:36]} 32. g4 {[%emt 0:2:21]} Kf8 {[%emt 0:0:33]} 33. Rc7 {[%emt 0:1:29]} Ne8 {[%emt 0:1:13]} 34. Rc8 {[%emt 0:0:16]} Kf7 {[%emt 0:2:35]} 35. h4 {[%emt 0:0:33]} Ke7 {[%emt 0:7:16]} 36. Ra8 {[%emt 0:1:22]} Kf7 {[%emt 0:1:17]} 37. Ra7+ {[%emt 0:1:4]} Re7 {[%emt 0:1:48]} 38. Ra6 {[%emt 0:0:5]} Re6 {[%emt 0:1:14]} 39. Kg3 {[%emt 0:1:8]} Nc7 {[%emt 0:1:48]} 40. Ra7 {[%emt 0:0:45]} Re7 {[%emt 0:0:14]} 41. f4 {[%emt 0:31:10]} g6 {[%emt 0:0:0]} 42. f5 {[%emt 0:0:0]} gxf5 {[%emt 0:0:0]} 43. gxf5 {[%emt 0:0:0]} Ke8 {[%emt 0:0:0]} 44. Bf6 {[%emt 0:0:0]} Rd7 {[%emt 0:3:54]} 45. Be5 {[%emt 0:0:0]} Kd8 {[%emt 0:0:6]} 46. Rxc7 {[%emt 0:0:0]} Rxc7 {[%emt 0:0:1]} 47. Bxc7+ {[%emt 0:0:0]} Kxc7 {[%emt 0:0:5]} 48. Kf4 {[%emt 0:0:0]} Kd7 {[%emt 0:0:11]} 49. Ke5 {[%emt 0:0:0]} Ke7 {[%emt 0:0:14]} 50. a3 {[%emt 0:0:0]} 1-0

[Event "56th Biel Festival MTO 2023"]
[White "Aarav Dengla"]
[Black "Wessman,Richard"]
[Site "Biel"]
[Round "5.17"]
[Annotator "RC"]
[Result "1/2-1/2"]
[Date "2023.07.21"]
[WhiteElo "2343"]
[BlackElo "2410"]
[PlyCount "57"]
[TimeControl "60"]

1. e4 {[%emt 0:0:0]} c6 {[%emt 0:0:0]} 2. d4 {[%emt 0:0:0]} d5 {[%emt 0:0:0]} 3. e5 {[%emt 0:0:0]} c5 {[%emt 0:0:0]} 4. Nf3 {[%emt 0:0:0]} cxd4 {[%emt 0:0:0]} 5. Qxd4 {[%emt 0:0:0]} Nc6 {[%emt 0:0:0]} 6. Qf4 {[%emt 0:0:0]} e6 {[%emt 0:0:0]} 7. Bd3 {[%emt 0:0:0]} Nb4 {[%emt 0:0:0]} 8. Bd2 {[%emt 0:0:0]} Nxd3+ {[%emt 0:0:0]} 9. cxd3 {[%emt 0:0:0]} Ne7 {[%emt 0:0:0]} 10. Nc3 {[%emt 0:0:0]} Bd7 {[%emt 0:0:0]} 11. h4 {[%emt 0:6:54]} h5 {[%emt 0:2:42]} 12. Ne2 {[%emt 0:16:28]} Ng6 {[%emt 0:19:49]} 13. Qg3 {[%emt 0:0:6]} Be7 {[%emt 0:7:5]} 14. a4 {[%emt 0:0:11]} Rc8 {[%emt 0:3:3]} 15. Nf4 {[%emt 0:19:15]} Nxf4 {[%emt 0:1:10]} 16. Bxf4 {[%emt 0:2:6]} Bb4+ {[%emt 0:2:40]} 17. Kf1 {[%emt 0:1:50]} Kf8 {[%emt 0:15:42]} 18. Kg1 {[%emt 0:14:57]} Rc2 {[%emt 0:0:50]} 19. Be3 {[%emt 0:4:9]} Rxb2 {[%emt 0:13:51]} 20. Rh3 {[%emt 0:6:6]} Be7 {[%emt 0:7:42]} 21. Bd2 {[%emt 0:9:3]} Qb6 {[%emt 0:2:19]} 22. a5 {[%emt 0:1:44]} Qa6 {[%emt 0:6:44]} 23. Qf4 {[%emt 0:2:48]} Qxd3 {[%emt 0:2:22]} 24. Ng5 {[%emt 0:1:5]} Bxg5 {[%emt 0:4:16]} 25. Qb4+ {[%emt 0:2:2]} Rxb4 {[%emt 0:2:4]} 26. Bxb4+ {[%emt 0:0:3]} Be7 {[%emt 0:1:12]} 27. Bxe7+ {[%emt 0:0:21]} Kxe7 {[%emt 0:0:4]} 28. Rxd3 {[%emt 0:0:11]} Rc8 {[%emt 0:1:9]} 29. Rb1 {[%emt 0:1:37]} 1/2-1/2

[Event "56th Biel Festival MTO 2023"]
[White "Jinan Jomon"]
[Black "Toktomushev,Teimur"]
[Site "Biel"]
[Round "5.18"]
[Annotator "RC"]
[Result "1-0"]
[Date "2023.07.21"]
[WhiteElo "2409"]
[BlackElo "2206"]
[PlyCount "111"]
[TimeControl "60"]

1. c4 {[%emt 0:0:0]} e6 {[%emt 0:0:0]} 2. Nf3 {[%emt 0:0:0]} d5 {[%emt 0:0:0]} 3. e3 {[%emt 0:0:0]} Nf6 {[%emt 0:0:0]} 4. Nc3 {[%emt 0:0:0]} c5 {[%emt 0:0:0]} 5. cxd5 {[%emt 0:0:0]} exd5 {[%emt 0:0:0]} 6. d4 {[%emt 0:0:0]} Nc6 {[%emt 0:0:0]} 7. Bb5 {[%emt 0:0:0]} cxd4 {[%emt 0:0:0]} 8. Nxd4 {[%emt 0:0:0]} Bd7 {[%emt 0:0:0]} 9. O-O {[%emt 0:0:0]} Bd6 {[%emt 0:0:0]} 10. Nf3 {[%emt 0:0:0]} Bg4 {[%emt 0:13:0]} 11. h3 {[%emt 0:0:0]} Bh5 {[%emt 0:2:40]} 12. Be2 {[%emt 0:0:0]} O-O {[%emt 0:0:33]} 13. b3 {[%emt 0:0:0]} Bxf3 {[%emt 0:16:14]} 14. Bxf3 {[%emt 0:0:0]} Be5 {[%emt 0:0:10]} 15. Bb2 {[%emt 0:0:0]} Qa5 {[%emt 0:6:17]} 16. a3 {[%emt 0:20:26]} d4 {[%emt 0:27:56]} 17. b4 {[%emt 0:7:18]} Qa6 {[%emt 0:5:12]} 18. Be2 {[%emt 0:15:13]} Qb6 {[%emt 0:21:30]} 19. Na4 {[%emt 0:0:54]} Qc7 {[%emt 0:2:45]} 20. f4 {[%emt 0:16:32]} d3 {[%emt 0:1:6]} 21. Bxd3 {[%emt 0:1:3]} Bxb2 {[%emt 0:0:6]} 22. Nxb2 {[%emt 0:0:1]} Rfe8 {[%emt 0:0:36]} 23. Qf3 {[%emt 0:1:10]} Rad8 {[%emt 0:0:48]} 24. Rad1 {[%emt 0:1:53]} h6 {[%emt 0:2:44]} 25. Kh2 {[%emt 0:16:49]} Qe7 {[%emt 0:0:49]} 26. Nc4 {[%emt 0:2:42]} a6 {[%emt 0:0:20]} 27. Rfe1 {[%emt 0:6:3]} Qe6 {[%emt 0:0:34]} 28. e4 {[%emt 0:4:55]} b5 {[%emt 0:0:34]} 29. Ne3 {[%emt 0:2:22]} Nd4 {[%emt 0:0:26]} 30. Qf2 {[%emt 0:0:5]} Qb3 {[%emt 0:0:37]} 31. e5 {[%emt 0:1:26]} Nd5 {[%emt 0:0:22]} 32. Nxd5 {[%emt 0:1:51]} Qxd5 {[%emt 0:0:4]} 33. Be4 {[%emt 0:0:8]} Qc4 {[%emt 0:0:14]} 34. Rc1 {[%emt 0:0:27]} Qb3 {[%emt 0:1:0]} 35. Re3 {[%emt 0:0:29]} Qe6 {[%emt 0:0:14]} 36. Rd3 {[%emt 0:0:56]} f5 {[%emt 0:0:44]} 37. Rxd4 {[%emt 0:2:25]} fxe4 {[%emt 0:0:3]} 38. Rxe4 {[%emt 0:0:20]} Rd3 {[%emt 0:0:30]} 39. Re3 {[%emt 0:1:47]} Red8 {[%emt 0:0:56]} 40. Rc7 {[%emt 0:2:39]} Rd2 {[%emt 0:0:43]} 41. Qg3 {[%emt 0:0:0]} g6 {[%emt 0:0:0]} 42. Rc1 {[%emt 0:11:25]} Kh7 {[%emt 0:0:0]} 43. Rec3 {[%emt 0:2:0]} Qf5 {[%emt 0:0:9]} 44. Rc7+ {[%emt 0:9:38]} Kh8 {[%emt 0:2:7]} 45. R7c6 {[%emt 0:0:27]} Qe4 {[%emt 0:2:22]} 46. Rc8 {[%emt 0:2:49]} g5 {[%emt 0:6:59]} 47. Rxd8+ {[%emt 0:1:11]} Rxd8 {[%emt 0:0:5]} 48. fxg5 {[%emt 0:0:7]} Rd3 {[%emt 0:3:38]} 49. Qf2 {[%emt 0:1:30]} Qxe5+ {[%emt 0:0:25]} 50. Kh1 {[%emt 0:0:1]} Rd8 {[%emt 0:2:54]} 51. gxh6 {[%emt 0:0:9]} Rd7 {[%emt 0:2:25]} 52. Re1 {[%emt 0:1:9]} Qh5 {[%emt 0:0:48]} 53. Qg3 {[%emt 0:1:54]} Kh7 {[%emt 0:0:26]} 54. Kh2 {[%emt 0:0:49]} Qxh6 {[%emt 0:3:4]} 55. Re4 {[%emt 0:0:18]} Rg7 {[%emt 0:0:26]} 56. Rh4 {[%emt 0:0:12]} 1-0

[Event "56th Biel Festival MTO 2023"]
[White "Shlyakhtenko,Robert"]
[Black "Nie,Xinyang"]
[Site "Biel"]
[Round "5.19"]
[Annotator "RC"]
[Result "1/2-1/2"]
[Date "2023.07.21"]
[WhiteElo "2401"]
[BlackElo "2288"]
[PlyCount "89"]
[TimeControl "60"]

1. Nf3 {[%emt 0:0:0]} d5 {[%emt 0:0:0]} 2. g3 {[%emt 0:0:0]} g6 {[%emt 0:0:0]} 3. Bg2 {[%emt 0:0:0]} Bg7 {[%emt 0:0:0]} 4. O-O {[%emt 0:0:0]} e5 {[%emt 0:0:0]} 5. d3 {[%emt 0:0:0]} Ne7 {[%emt 0:0:0]} 6. c4 {[%emt 0:0:0]} c6 {[%emt 0:0:0]} 7. cxd5 {[%emt 0:0:0]} cxd5 {[%emt 0:0:0]} 8. Nc3 {[%emt 0:0:0]} Nbc6 {[%emt 0:0:0]} 9. e4 {[%emt 0:2:29]} O-O {[%emt 0:0:0]} 10. Re1 {[%emt 0:6:51]} d4 {[%emt 0:0:0]} 11. Nd5 {[%emt 0:0:16]} Be6 {[%emt 0:3:49]} 12. Ng5 {[%emt 0:0:54]} Bxd5 {[%emt 0:3:35]} 13. exd5 {[%emt 0:1:11]} Nxd5 {[%emt 0:0:4]} 14. Qb3 {[%emt 0:0:27]} Nb6 {[%emt 0:10:48]} 15. Bd2 {[%emt 0:0:27]} Bf6 {[%emt 0:2:36]} 16. h4 {[%emt 0:7:21]} Rc8 {[%emt 0:5:4]} 17. Rac1 {[%emt 0:5:29]} Rc7 {[%emt 0:3:34]} 18. Be4 {[%emt 0:5:10]} Nc8 {[%emt 0:11:24]} 19. Kg2 {[%emt 0:10:14]} Nd6 {[%emt 0:0:50]} 20. Bd5 {[%emt 0:0:8]} Re8 {[%emt 0:12:40]} 21. Rc5 {[%emt 0:7:12]} Qd7 {[%emt 0:8:45]} 22. Qc2 {[%emt 0:5:51]} Rec8 {[%emt 0:1:14]} 23. Rc1 {[%emt 0:1:21]} Bd8 {[%emt 0:1:39]} 24. Qa4 {[%emt 0:7:47]} Qf5 {[%emt 0:17:59]} 25. Ne4 {[%emt 0:1:55]} Nxe4 {[%emt 0:2:8]} 26. Bxe4 {[%emt 0:2:28]} Qe6 {[%emt 0:0:54]} 27. Bd5 {[%emt 0:15:10]} Qd6 {[%emt 0:1:4]} 28. Bf3 {[%emt 0:2:3]} h5 {[%emt 0:1:43]} 29. b4 {[%emt 0:0:36]} a6 {[%emt 0:0:53]} 30. b5 {[%emt 0:2:36]} axb5 {[%emt 0:0:3]} 31. Qxb5 {[%emt 0:0:12]} Be7 {[%emt 0:0:22]} 32. a4 {[%emt 0:2:46]} Kg7 {[%emt 0:4:15]} 33. R5c2 {[%emt 0:5:4]} Qe6 {[%emt 0:1:40]} 34. Bd5 {[%emt 0:3:15]} Qf5 {[%emt 0:0:15]} 35. Be4 {[%emt 0:1:57]} Qe6 {[%emt 0:0:2]} 36. Bd5 {[%emt 0:0:1]} Qf5 {[%emt 0:0:0]} 37. Qb3 {[%emt 0:0:30]} Bd8 {[%emt 0:1:11]} 38. Be4 {[%emt 0:2:30]} Qf6 {[%emt 0:0:51]} 39. Bf3 {[%emt 0:4:23]} Ra8 {[%emt 0:1:10]} 40. Rc5 {[%emt 0:0:31]} Qe7 {[%emt 0:4:40]} 41. Rb5 {[%emt 0:0:0]} Ra7 {[%emt 0:0:0]} 42. Re1 {[%emt 0:0:0]} Qd6 {[%emt 0:0:0]} 43. Rd5 {[%emt 0:0:0]} Qe6 {[%emt 0:0:0]} 44. Qb5 {[%emt 0:0:0]} Re7 {[%emt 0:0:0]} 45. Re2 {[%emt 0:9:20]} 1/2-1/2